fUSD/lending_fUSD_20250207
["ID","MTS","AMOUNT","RATE_DAILY","PERIOD"]
[352116202,1738954240369,-173.34649049,0.00015605,2]
[352116203,1738954240378,-286.43229834,0.00015605,2]
[352116205,1738954240388,-580.45527341,0.00015622,2]
[352116208,1738954240398,-173.34649049,0.00015622,2]
[352116209,1738954240408,-286.43229834,0.00015622,2]
[352116211,1738954240417,-580.45527341,0.00015639,2]
[352116213,1738954240426,-173.34649049,0.00015639,2]
[352116215,1738954240435,-286.43229834,0.00015639,2]
[352116217,1738954240444,-150.0,0.0001564,2]
[352116219,1738954240454,-580.45527341,0.00015656,2]
[352116221,1738954240463,-173.34649049,0.00015656,2]
[352116223,1738954240472,-286.43229834,0.00015656,2]
[352116225,1738954240481,-580.45527341,0.00015673,2]
[352116227,1738954240490,-173.34649049,0.00015673,2]
[352116229,1738954240500,-286.43229834,0.00015673,2]
[352116231,1738954240509,-150.0,0.0001568,2]
[352116253,1738954240706,-580.45527341,0.00015689,2]
[352116255,1738954240715,-173.34649049,0.00015689,2]
[352116257,1738954240725,-286.43229834,0.00015689,2]
[352116258,1738954240734,-580.45527341,0.00015706,2]
[352116260,1738954240743,-173.34649049,0.00015706,2]
[352116263,1738954240754,-286.43229834,0.00015706,2]
[352116265,1738954240765,-150.0,0.00015719,2]
[352116267,1738954240774,-580.45527341,0.00015723,2]
[352116269,1738954240783,-173.34649049,0.00015723,2]
[352116270,1738954240793,-286.43229834,0.00015723,2]
[352116272,1738954240805,-580.45527341,0.0001574,2]
[352116274,1738954240814,-173.34649049,0.0001574,2]
[352116276,1738954240823,-286.43229834,0.0001574,2]
[352116278,1738954240834,-866.94,0.00015745,2]
[352116280,1738954240844,-580.45527341,0.00015757,2]
[352116282,1738954240854,-173.34649049,0.00015757,2]
[352116284,1738954240864,-286.43229834,0.00015757,2]
[352116287,1738954240873,-150.0,0.00015759,2]
[352116290,1738954240883,-580.45527341,0.00015773,2]
[352116293,1738954240892,-173.34649049,0.00015773,2]
[352116296,1738954240901,-286.43229834,0.00015773,2]
[352116299,1738954240911,-580.45527341,0.0001579,2]
[352116302,1738954240920,-173.34649049,0.0001579,2]
[352116304,1738954240929,-286.43229834,0.0001579,2]
[352116306,1738954240938,-150.0,0.00015799,2]
[352116308,1738954240950,-580.45527341,0.00015807,2]
[352116310,1738954240960,-173.34649049,0.00015807,2]
[352116312,1738954240969,-286.43229834,0.00015807,2]
[352116315,1738954240979,-55460.98462309,0.0001581,2]
[352116317,1738954240988,-580.45527341,0.00015824,2]
[352116319,1738954240997,-173.34649049,0.00015824,2]
[352116321,1738954241007,-286.43229834,0.00015824,2]
[352116323,1738954241016,-439.61,0.00015836,2]
[352116325,1738954241025,-439.61,0.00015836,2]
[352116326,1738954241035,-439.61,0.00015836,2]
[352116329,1738954241044,-774.96,0.00015836,2]
[352116330,1738954241054,-774.96,0.00015836,2]
[352116333,1738954241063,-439.61,0.00015836,2]
[352116334,1738954241073,-774.96,0.00015836,2]
[352116336,1738954241082,-439.61,0.00015836,2]
[352116339,1738954241092,-439.61,0.00015836,2]
[352116341,1738954241101,-774.96,0.00015836,2]
[352116343,1738954241111,-774.96,0.00015836,2]
[352116344,1738954241120,-439.61,0.00015836,2]
[352116346,1738954241129,-774.96,0.00015836,2]
[352116348,1738954241139,-439.61,0.00015836,2]
[352116350,1738954241149,-439.61,0.00015836,2]
[352116353,1738954241158,-774.96,0.00015836,2]
[352116354,1738954241167,-439.61,0.00015836,2]
[352116357,1738954241176,-774.96,0.00015836,2]
[352116359,1738954241185,-774.96,0.00015836,2]
[352116361,1738954241195,-439.61,0.00015836,2]
[352116362,1738954241207,-769.82,0.00015836,2]
[352116365,1738954241216,-439.61,0.00015836,2]
[352116367,1738954241225,-439.61,0.00015836,2]
[352116369,1738954241234,-233.42,0.00015836,2]
[352116370,1738954241245,-150.0,0.00015838,2]
[352116372,1738954241254,-580.45527341,0.00015841,2]
[352116374,1738954241263,-173.34649049,0.00015841,2]
[352116376,1738954241272,-286.43229834,0.00015841,2]
[352116378,1738954241281,-580.45527341,0.00015857,2]
[352116381,1738954241290,-173.34649049,0.00015857,2]
[352116382,1738954241299,-286.43229834,0.00015857,2]
[352116384,1738954241311,-580.45527341,0.00015874,2]
[352116387,1738954241321,-173.34649049,0.00015874,2]
[352116389,1738954241330,-286.43229834,0.00015874,2]
[352116390,1738954241339,-150.0,0.00015878,2]
[352116392,1738954241348,-580.45527341,0.00015891,2]
[352116394,1738954241358,-173.34649049,0.00015891,2]
[352116396,1738954241367,-286.43229834,0.00015891,2]
[352116398,1738954241376,-580.45527341,0.00015908,2]
[352116401,1738954241386,-173.34649049,0.00015908,2]
[352116403,1738954241396,-286.43229834,0.00015908,2]
[352116405,1738954241406,-150.0,0.00015917,2]
[352116406,1738954241415,-580.45527341,0.00015925,2]
[352116408,1738954241425,-173.34649049,0.00015925,2]
[352116410,1738954241434,-286.43229834,0.00015925,2]
[352116412,1738954241444,-580.45527341,0.00015941,2]
[352116414,1738954241453,-173.34649049,0.00015941,2]
[352116416,1738954241463,-286.43229834,0.00015941,2]
[352116418,1738954241472,-150.0,0.00015957,2]
[352116420,1738954241482,-580.45527341,0.00015958,2]
[352116422,1738954241491,-173.34649049,0.00015958,2]
[352116424,1738954241501,-286.43229834,0.00015958,2]
[352116427,1738954241510,-150.0,0.00015973,2]
[352116429,1738954241520,-438.66,0.00015973,2]
[352116431,1738954241529,-150.0,0.00015973,2]
[352116433,1738954241539,-150.0,0.00015973,2]
[352116434,1738954241548,-150.0,0.00015973,2]
[352116436,1738954241564,-438.66,0.00015973,2]
[352116439,1738954241573,-150.0,0.00015973,2]
[352116441,1738954241582,-150.0,0.00015973,2]
[352116442,1738954241591,-150.0,0.00015973,2]
[352116445,1738954241600,-150.0,0.00015973,2]
[352116446,1738954241609,-438.66,0.00015973,2]
[352116448,1738954241619,-150.0,0.00015973,2]
[352116451,1738954241629,-150.0,0.00015973,2]
[352116453,1738954241638,-150.0,0.00015973,2]
[352116455,1738954241647,-150.0,0.00015973,2]
[352116456,1738954241656,-150.0,0.00015973,2]
[352116457,1738954241665,-150.0,0.00015973,2]
[352116458,1738954241674,-150.0,0.00015973,2]
[352116459,1738954241683,-438.66,0.00015973,2]
[352116460,1738954241691,-438.66,0.00015973,2]
[352116461,1738954241701,-150.0,0.00015973,2]
[352116462,1738954241710,-150.0,0.00015973,2]
[352116463,1738954241719,-150.0,0.00015973,2]
[352116464,1738954241728,-150.0,0.00015973,2]
[352116465,1738954241737,-150.0,0.00015973,2]
[352116466,1738954241747,-150.0,0.00015973,2]
[352116467,1738954241759,-150.0,0.00015973,2]
[352116468,1738954241768,-438.66,0.00015973,2]
[352116469,1738954241777,-150.0,0.00015973,2]
[352116470,1738954241786,-150.0,0.00015973,2]
[352116472,1738954241796,-150.0,0.00015973,2]
[352116474,1738954241809,-150.0,0.00015973,2]
[352116476,1738954241820,-150.0,0.00015973,2]
[352116478,1738954241829,-438.66,0.00015973,2]
[352116480,1738954241839,-150.0,0.00015973,2]
[352116482,1738954241848,-150.0,0.00015973,2]
[352116484,1738954241858,-150.0,0.00015973,2]
[352116486,1738954241868,-150.0,0.00015973,2]
[352116488,1738954241877,-438.66,0.00015973,2]
[352116490,1738954241887,-150.0,0.00015973,2]
[352116492,1738954241896,-150.0,0.00015973,2]
[352116494,1738954241905,-302.56,0.00015973,2]
[352116496,1738954241915,-233.16,0.00015973,2]
[352116498,1738954241924,-150.0,0.00015973,2]
[352116500,1738954241934,-363.08,0.00015973,2]
[352116501,1738954241944,-150.0,0.00015973,2]
[352116503,1738954241953,-438.66,0.00015973,2]
[352116505,1738954241962,-438.66,0.00015973,2]
[352116507,1738954241972,-150.0,0.00015973,2]
[352116509,1738954241981,-438.66,0.00015973,2]
[352116512,1738954241990,-150.0,0.00015973,2]
[352116514,1738954241999,-150.0,0.00015973,2]
[352116515,1738954242009,-150.0,0.00015973,2]
[352116517,1738954242018,-438.66,0.00015973,2]
[352116519,1738954242027,-150.0,0.00015973,2]
[352116521,1738954242038,-438.66,0.00015973,2]
[352116524,1738954242048,-150.27,0.00015973,2]
[352116525,1738954242062,-151.61,0.00015973,2]
[352116528,1738954242072,-580.45527341,0.00015975,2]
[352116530,1738954242083,-173.34649049,0.00015975,2]
[352116531,1738954242093,-286.43229834,0.00015975,2]
[352116533,1738954242103,-580.45527341,0.00015992,2]
[352116535,1738954242112,-173.34649049,0.00015992,2]
[352116538,1738954242122,-286.43229834,0.00015992,2]
[352116539,1738954242133,-150.0,0.00015997,2]
[352116541,1738954242143,-580.45527341,0.00016009,2]
[352116544,1738954242153,-173.34649049,0.00016009,2]
[352116546,1738954242163,-286.43229834,0.00016009,2]
[352116548,1738954242174,-580.45527341,0.00016025,2]
[352116550,1738954242183,-173.34649049,0.00016025,2]
[352116552,1738954242192,-286.43229834,0.00016025,2]
[352116554,1738954242201,-1000.0,0.00016026,2]
[352116556,1738954242210,-150.0,0.00016036,2]
[352116558,1738954242220,-580.45527341,0.00016042,2]
[352116560,1738954242229,-173.34649049,0.00016042,2]
[352116562,1738954242237,-286.43229834,0.00016042,2]
[352116564,1738954242246,-580.45527341,0.00016059,2]
[352116565,1738954242255,-173.34649049,0.00016059,2]
[352116567,1738954242264,-286.43229834,0.00016059,2]
[352116569,1738954242273,-580.45527341,0.00016076,2]
[352116571,1738954242282,-173.34649049,0.00016076,2]
[352116573,1738954242291,-286.43229834,0.00016076,2]
[352116575,1738954242301,-150.0,0.00016076,2]
[352116577,1738954242313,-580.45527341,0.00016093,2]
[352116579,1738954242322,-173.34649049,0.00016093,2]
[352116581,1738954242331,-286.43229834,0.00016093,2]
[352116583,1738954242340,-580.45527341,0.00016109,2]
[352116585,1738954242349,-173.34649049,0.00016109,2]
[352116587,1738954242359,-286.43229834,0.00016109,2]
[352116589,1738954242368,-150.0,0.00016115,2]
[352116591,1738954242377,-580.45527341,0.00016126,2]
[352116593,1738954242386,-173.34649049,0.00016126,2]
[352116595,1738954242395,-286.43229834,0.00016126,2]
[352116597,1738954242404,-150.0,0.0001614,2]
[352116599,1738954242413,-580.45527341,0.00016143,2]
[352116601,1738954242422,-173.34649049,0.00016143,2]
[352116603,1738954242431,-286.43229834,0.00016143,2]
[352116605,1738954242440,-150.0,0.00016155,2]
[352116607,1738954242448,-580.45527341,0.0001616,2]
[352116609,1738954242457,-173.34649049,0.0001616,2]
[352116611,1738954242466,-286.43229834,0.0001616,2]
[352116613,1738954242475,-580.45527341,0.00016177,2]
[352116615,1738954242484,-173.34649049,0.00016177,2]
[352116617,1738954242493,-286.43229834,0.00016177,2]
[352116619,1738954242501,-580.45527341,0.00016193,2]
[352116621,1738954242511,-173.34649049,0.00016193,2]
[352116623,1738954242520,-286.43229834,0.00016193,2]
[352116625,1738954242528,-150.0,0.00016195,2]
[352116627,1738954242537,-580.45527341,0.0001621,2]
[352116629,1738954242546,-173.34649049,0.0001621,2]
[352116631,1738954242561,-286.43229834,0.0001621,2]
[352116633,1738954242571,-580.45527341,0.00016227,2]
[352116635,1738954242581,-173.34649049,0.00016227,2]
[352116637,1738954242590,-286.43229834,0.00016227,2]
[352116639,1738954242599,-150.0,0.00016234,2]
[352116641,1738954242608,-361.08597073,0.00016235,2]
[352116643,1738954242618,-263.3656117,0.00016243,2]
[352116645,1738954242627,-580.45527341,0.00016244,2]
[352116647,1738954242636,-173.34649049,0.00016244,2]
[352116649,1738954242645,-286.43229834,0.00016244,2]
[352116651,1738954242654,-55460.98462309,0.00016255,2]
[352116653,1738954242664,-580.45527341,0.00016261,2]
[352116655,1738954242673,-173.34649049,0.00016261,2]
[352116657,1738954242684,-286.43229834,0.00016261,2]
[352116659,1738954242695,-430.44013506,0.00016273,2]
[352116661,1738954242705,-150.0,0.00016274,2]
[352116663,1738954242715,-580.45527341,0.00016277,2]
[352116665,1738954242725,-173.34649049,0.00016277,2]
[352116667,1738954242734,-286.43229834,0.00016277,2]
[352116669,1738954242745,-505555.85968544,0.0001628,2]
[352116671,1738954242760,-150.66417334,0.00016286,2]
[352116673,1738954242770,-580.45527341,0.00016294,2]
[352116675,1738954242779,-173.34649049,0.00016294,2]
[352116677,1738954242788,-286.43229834,0.00016294,2]
[352116679,1738954242798,-580.45527341,0.00016311,2]
[352116680,1738954242817,-173.34649049,0.00016311,2]
[352116683,1738954242827,-286.43229834,0.00016311,2]
[352116685,1738954242838,-150.0,0.00016313,2]
[352116687,1738954242848,-580.45527341,0.00016328,2]
[352116689,1738954242857,-173.34649049,0.00016328,2]
[352116691,1738954242867,-286.43229834,0.00016328,2]
[352116693,1738954242876,-210.93304077,0.00016338,2]
[352116695,1738954242885,-580.45527341,0.00016345,2]
[352116697,1738954242895,-173.34649049,0.00016345,2]
[352116699,1738954242904,-286.43229834,0.00016345,2]
[352116701,1738954242913,-14770.11099216,0.00016351,2]
[352116703,1738954242922,-150.0,0.00016353,2]
[352116705,1738954242932,-580.45527341,0.00016361,2]
[352116707,1738954242941,-173.34649049,0.00016361,2]
[352116709,1738954242950,-286.43229834,0.00016361,2]
[352116711,1738954242960,-500.0,0.00016368,2]
[352116713,1738954242970,-254.97982238,0.00016376,2]
[352116714,1738954242979,-580.45527341,0.00016378,2]
[352116716,1738954242988,-173.34649049,0.00016378,2]
[352116718,1738954242997,-286.43229834,0.00016378,2]
[352116720,1738954243007,-6185.96049188,0.0001638,2]
[352116722,1738954243016,-1400.0,0.00016385,2]
[352116724,1738954243025,-500.0,0.00016387,2]
[352116726,1738954243034,-150.0,0.00016393,2]
[352116728,1738954243043,-580.45527341,0.00016395,2]
[352116730,1738954243055,-173.34649049,0.00016395,2]
[352116732,1738954243064,-286.43229834,0.00016395,2]
[352116734,1738954243073,-4043.70027464,0.00016396,2]
[352116736,1738954243082,-6210.12573937,0.00016396,2]
[352116738,1738954243091,-368.58543123,0.00016396,2]
[352116740,1738954243101,-3000.163428,0.000164,2]
[352116742,1738954243110,-3426.137,0.000164,2]
[352116744,1738954243120,-500.0,0.00016405,2]
[352116746,1738954243129,-2000.0,0.00016405,2]
[352116748,1738954243139,-500.0,0.00016405,2]
[352116750,1738954243148,-200.0,0.00016405,2]
[352116752,1738954243158,-4000.0,0.0001641,2]
[352116754,1738954243167,-580.45527341,0.00016412,2]
[352116756,1738954243177,-173.34649049,0.00016412,2]
[352116758,1738954243186,-286.43229834,0.00016412,2]
[352116761,1738954243195,-500.0,0.00016423,2]
[352116763,1738954243205,-150.0,0.00016424,2]
[352116766,1738954243214,-580.45527341,0.00016429,2]
[352116769,1738954243224,-173.34649049,0.00016429,2]
[352116771,1738954243233,-286.43229834,0.00016429,2]
[352116773,1738954243242,-150.0,0.00016432,2]
[352116775,1738954243251,-2170.0,0.00016438,2]
[352116777,1738954243261,-500.0,0.00016438,2]
[352116779,1738954243270,-202.02378117,0.00016438,2]
[352116781,1738954243280,-500.0,0.00016438,2]
[352116783,1738954243290,-190.37123564,0.00016438,2]
[352116786,1738954243299,-436.93170626,0.00016438,2]
[352116790,1738954243313,-500.0,0.00016438,2]
[352116792,1738954243323,-500.0,0.00016438,2]
[352116795,1738954243332,-500.0,0.00016438,2]
[352116797,1738954243341,-500.0,0.00016438,2]
[352116800,1738954243351,-500.0,0.00016438,2]
[352116803,1738954243361,-221.0456427,0.00016438,2]
[352116805,1738954243370,-500.0,0.00016438,2]
[352116807,1738954243380,-502.23520174,0.00016438,2]
[352116809,1738954243389,-500.0,0.00016438,2]
[352116811,1738954243399,-500.0,0.00016438,2]
[352116813,1738954243408,-500.0,0.00016438,2]
[352116815,1738954243418,-638.72155357,0.00016438,2]
[352116817,1738954243427,-154.25447722,0.00016438,2]
[352116819,1738954243436,-336.9628116,0.00016438,2]
[352116821,1738954243445,-500.0,0.00016438,2]
[352116823,1738954243454,-500.0,0.00016438,2]
[352116825,1738954243463,-500.0,0.00016438,2]
[352116827,1738954243473,-500.0,0.00016438,2]
[352116829,1738954243482,-505.0046534,0.00016438,2]
[352116831,1738954243492,-500.0,0.00016438,2]
[352116833,1738954243502,-500.0,0.00016438,2]
[352116835,1738954243512,-500.0,0.00016438,2]
[352116837,1738954243521,-500.0,0.00016438,2]
[352116839,1738954243531,-500.0,0.00016438,2]
[352116841,1738954243540,-500.0,0.00016438,2]
[352116843,1738954243549,-500.0,0.00016438,2]
[352116845,1738954243564,-500.0,0.00016438,2]
[352116847,1738954243573,-500.0,0.00016438,2]
[352116849,1738954243582,-500.0,0.00016438,2]
[352116851,1738954243592,-1902.430245,0.00016438,2]
[352116853,1738954243601,-502.59769097,0.00016438,2]
[352116855,1738954243611,-500.0,0.00016438,2]
[352116857,1738954243620,-500.0,0.00016438,2]
[352116859,1738954243629,-168.632492,0.00016438,2]
[352116861,1738954243639,-500.0,0.00016438,2]
[352116863,1738954243649,-500.0,0.00016438,2]
[352116865,1738954243658,-500.0,0.00016438,2]
[352116867,1738954243667,-500.0,0.00016438,2]
[352116869,1738954243677,-155.738817,0.00016438,2]
[352116871,1738954243686,-500.0,0.00016438,2]
[352116873,1738954243695,-500.0,0.00016438,2]
[352116875,1738954243705,-279.84463679,0.00016438,2]
[352116877,1738954243714,-500.0,0.00016438,2]
[352116879,1738954243724,-500.0,0.00016438,2]
[352116881,1738954243733,-500.0,0.00016438,2]
[352116883,1738954243743,-500.0,0.00016438,2]
[352116885,1738954243754,-500.0,0.00016438,2]
[352116887,1738954243766,-500.0,0.00016438,2]
[352116889,1738954243776,-500.0,0.00016438,2]
[352116891,1738954243785,-500.0,0.00016438,2]
[352116893,1738954243795,-500.0,0.00016438,2]
[352116895,1738954243809,-500.0,0.00016438,2]
[352116897,1738954243818,-502.95856328,0.00016438,2]
[352116899,1738954243827,-2005.221222,0.00016438,2]
[352116901,1738954243838,-500.0,0.00016438,2]
[352116903,1738954243847,-500.0,0.00016438,2]
[352116926,1738954244006,-500.0,0.00016438,2]
[352116929,1738954244036,-500.0,0.00016438,2]
[352116931,1738954244045,-500.0,0.00016438,2]
[352116933,1738954244056,-500.0,0.00016438,2]
[352116935,1738954244065,-500.0,0.00016438,2]
[352116937,1738954244076,-500.0,0.00016438,2]
[352116939,1738954244085,-500.84100556,0.00016438,2]
[352116941,1738954244094,-500.0,0.00016438,2]
[352116943,1738954244103,-500.0,0.00016438,2]
[352116945,1738954244113,-500.0,0.00016438,2]
[352116947,1738954244121,-500.0,0.00016438,2]
[352116949,1738954244130,-616.10776064,0.00016438,2]
[352116951,1738954244140,-500.0,0.00016438,2]
[352116953,1738954244149,-178.94981,0.00016438,2]
[352116955,1738954244158,-500.0,0.00016438,2]
[352116957,1738954244167,-500.0,0.00016438,2]
[352116959,1738954244176,-500.0,0.00016438,2]
[352116961,1738954244186,-500.0,0.00016438,2]
[352116963,1738954244195,-505.1300128,0.00016438,2]
[352116965,1738954244204,-500.0,0.00016438,2]
[352116967,1738954244214,-500.0,0.00016438,2]
[352116969,1738954244223,-500.0,0.00016438,2]
[352116971,1738954244232,-500.0,0.00016438,2]
[352116973,1738954244243,-500.0,0.00016438,2]
[352116975,1738954244252,-500.0,0.00016438,2]
[352116977,1738954244261,-500.0,0.00016438,2]
[352116979,1738954244271,-500.0,0.00016438,2]
[352116980,1738954244280,-500.0,0.00016438,2]
[352116982,1738954244289,-503.73393657,0.00016438,2]
[352116984,1738954244298,-500.0,0.00016438,2]
[352116986,1738954244314,-500.0,0.00016438,2]
[352116988,1738954244323,-500.0,0.00016438,2]
[352116990,1738954244332,-500.0,0.00016438,2]
[352116992,1738954244342,-500.0,0.00016438,2]
[352116994,1738954244351,-500.0,0.00016438,2]
[352116996,1738954244360,-500.0,0.00016438,2]
[352116998,1738954244370,-500.0,0.00016438,2]
[352117000,1738954244379,-500.0,0.00016438,2]
[352117002,1738954244388,-500.0,0.00016438,2]
[352117004,1738954244398,-500.0,0.00016438,2]
[352117006,1738954244407,-500.0,0.00016438,2]
[352117008,1738954244417,-500.0,0.00016438,2]
[352117010,1738954244426,-500.0,0.00016438,2]
[352117012,1738954244435,-500.0,0.00016438,2]
[352117014,1738954244445,-500.0,0.00016438,2]
[352117016,1738954244454,-195.003032,0.00016438,2]
[352117018,1738954244463,-500.0,0.00016438,2]
[352117020,1738954244473,-500.0,0.00016438,2]
[352117022,1738954244482,-500.0,0.00016438,2]
[352117024,1738954244492,-500.0,0.00016438,2]
[352117026,1738954244502,-500.0,0.00016438,2]
[352117028,1738954244512,-500.0,0.00016438,2]
[352117030,1738954244521,-500.0,0.00016438,2]
[352117032,1738954244531,-500.0,0.00016438,2]
[352117034,1738954244541,-500.0,0.00016438,2]
[352117037,1738954244556,-500.0,0.00016438,2]
[352117039,1738954244567,-500.0,0.00016438,2]
[352117041,1738954244576,-500.0,0.00016438,2]
[352117043,1738954244586,-178.949804,0.00016438,2]
[352117045,1738954244595,-500.0,0.00016438,2]
[352117047,1738954244605,-500.0,0.00016438,2]
[352117049,1738954244614,-500.0,0.00016438,2]
[352117050,1738954244623,-500.0,0.00016438,2]
[352117053,1738954244633,-500.0,0.00016438,2]
[352117054,1738954244643,-500.0,0.00016438,2]
[352117056,1738954244653,-500.0,0.00016438,2]
[352117058,1738954244662,-500.0,0.00016438,2]
[352117060,1738954244672,-500.0,0.00016438,2]
[352117062,1738954244682,-500.0,0.00016438,2]
[352117064,1738954244691,-500.0,0.00016438,2]
[352117065,1738954244701,-500.0,0.00016438,2]
[352117066,1738954244710,-500.0,0.00016438,2]
[352117067,1738954244719,-500.0,0.00016438,2]
[352117068,1738954244728,-500.0,0.00016438,2]
[352117069,1738954244737,-500.0,0.00016438,2]
[352117070,1738954244746,-500.0,0.00016438,2]
[352117071,1738954244757,-500.0,0.00016438,2]
[352117072,1738954244768,-500.0,0.00016438,2]
[352117073,1738954244777,-500.0,0.00016438,2]
[352117074,1738954244786,-167.145449,0.00016438,2]
[352117075,1738954244795,-500.0,0.00016438,2]
[352117076,1738954244808,-500.0,0.00016438,2]
[352117077,1738954244817,-500.0,0.00016438,2]
[352117079,1738954244826,-500.0,0.00016438,2]
[352117081,1738954244836,-500.0,0.00016438,2]
[352117083,1738954244846,-500.0,0.00016438,2]
[352117085,1738954244856,-500.0,0.00016438,2]
[352117087,1738954244866,-500.0,0.00016438,2]
[352117089,1738954244875,-500.0,0.00016438,2]
[352117091,1738954244884,-159.336581,0.00016438,2]
[352117093,1738954244894,-500.0,0.00016438,2]
[352117095,1738954244907,-500.0,0.00016438,2]
[352117097,1738954244916,-500.0,0.00016438,2]
[352117098,1738954244925,-500.0,0.00016438,2]
[352117100,1738954244935,-500.0,0.00016438,2]
[352117103,1738954244945,-500.0,0.00016438,2]
[352117104,1738954244955,-500.0,0.00016438,2]
[352117106,1738954244964,-500.0,0.00016438,2]
[352117108,1738954244974,-500.0,0.00016438,2]
[352117110,1738954244983,-500.0,0.00016438,2]
[352117112,1738954244993,-500.0,0.00016438,2]
[352117114,1738954245002,-500.0,0.00016438,2]
[352117116,1738954245012,-500.0,0.00016438,2]
[352117118,1738954245022,-500.0,0.00016438,2]
[352117120,1738954245031,-500.0,0.00016438,2]
[352117122,1738954245040,-500.0,0.00016438,2]
[352117124,1738954245049,-500.0,0.00016438,2]
[352117126,1738954245062,-500.0,0.00016438,2]
[352117128,1738954245071,-500.0,0.00016438,2]
[352117130,1738954245079,-500.0,0.00016438,2]
[352117132,1738954245089,-575.49,0.00016438,2]
[352117134,1738954245098,-500.0,0.00016438,2]
[352117136,1738954245107,-500.0,0.00016438,2]
[352117138,1738954245116,-500.0,0.00016438,2]
[352117140,1738954245125,-500.0,0.00016438,2]
[352117142,1738954245135,-500.0,0.00016438,2]
[352117144,1738954245145,-500.0,0.00016438,2]
[352117146,1738954245154,-500.0,0.00016438,2]
[352117148,1738954245163,-500.0,0.00016438,2]
[352117150,1738954245172,-500.0,0.00016438,2]
[352117152,1738954245182,-175.502723,0.00016438,2]
[352117154,1738954245191,-500.0,0.00016438,2]
[352117156,1738954245201,-500.0,0.00016438,2]
[352117158,1738954245211,-500.0,0.00016438,2]
[352117160,1738954245220,-500.0,0.00016438,2]
[352117162,1738954245230,-500.0,0.00016438,2]
[352117164,1738954245240,-500.0,0.00016438,2]
[352117166,1738954245250,-500.0,0.00016438,2]
[352117167,1738954245259,-500.0,0.00016438,2]
[352117170,1738954245271,-500.0,0.00016438,2]
[352117172,1738954245281,-500.0,0.00016438,2]
[352117174,1738954245291,-192.835554,0.00016438,2]
[352117176,1738954245301,-500.0,0.00016438,2]
[352117177,1738954245312,-500.0,0.00016438,2]
[352117179,1738954245322,-500.0,0.00016438,2]
[352117181,1738954245331,-500.0,0.00016438,2]
[352117183,1738954245341,-1000.56135859,0.00016438,2]
[352117186,1738954245351,-500.0,0.00016438,2]
[352117188,1738954245361,-623.87,0.00016438,2]
[352117189,1738954245372,-500.0,0.00016438,2]
[352117191,1738954245381,-500.0,0.00016438,2]
[352117194,1738954245391,-501.50777161,0.00016438,2]
[352117196,1738954245401,-500.0,0.00016438,2]
[352117198,1738954245411,-500.0,0.00016438,2]
[352117200,1738954245420,-500.0,0.00016438,2]
[352117202,1738954245430,-500.0,0.00016438,2]
[352117204,1738954245439,-500.0,0.00016438,2]
[352117206,1738954245450,-500.0,0.00016438,2]
[352117208,1738954245459,-575.04,0.00016438,2]
[352117210,1738954245468,-500.0,0.00016438,2]
[352117212,1738954245478,-536.36402145,0.00016438,2]
[352117213,1738954245487,-500.0,0.00016438,2]
[352117215,1738954245496,-500.0,0.00016438,2]
[352117217,1738954245506,-500.0,0.00016438,2]
[352117219,1738954245515,-500.0,0.00016438,2]
[352117221,1738954245525,-500.0,0.00016438,2]
[352117223,1738954245534,-500.0,0.00016438,2]